Workbook

Sheet INDICE
B2: Conteúdo do Curso de Excel
B5: ÍNDICE | C5: Sintaxe | D5: Exercício
B6: O AMBIENTE EXCEL | C6: Ir
B7: REFERÊNCIA RELATIVA E ABSOLUTA | C7: Ir | D7: Ir
B8: FUNÇÕES SOMA, MÉDIA, MAXIMO E MÍNIMO | C8: Ir | D8: Ir
B9: FUNÇÃO SE COM E | C9: Ir | D9: Ir
B10: FUNÇÃO ORDEM | C10: Ir | D10: Ir
B11: FUNÇÃO SOMASE | C11: Ir | D11: Ir
B12: FORMATAÇÃO CONDICIONAL NA CÉLULA | C12: Ir | D12: Ir
B13: FORMATAÇÃO CONDICIONAL NA LINHA | C13: Ir | D13: Ir
B14: Intermediario
B15: NOMEANDO INTERVALOS | C15: Ir | D15: Ir
B16: FUNÇÃO CONTASE | C16: Ir | D16: Ir
B17: CONGELAR PAINÉIS | C17: Ir | D17: Ir
B18: FUNÇÃO SUBTOTAL | C18: Ir | D18: Ir
B19: AUTO FILTRO | C19: Ir | D19: Ir
B20: FILTRO AVANÇADO | C20: Ir | D20: Ir
B21: PROCV | C21: Ir | D21: Ir
B22: VALIDAÇÃO DE DADOS | C22: Ir | D22: Ir
B23: VALIDAÇÃO DE DADOS - LISTA | C23: Ir | D23: Ir
B24: FUNÇÕES DE TEXTO | C24: Ir | D24: Ir
B25: FUNÇÃO DE CONTAGEM | C25: Ir | D25: Ir
B26: FUNÇÃO DE DATA E HORA | C26: Ir | D26: Ir
B27: FUNÇÕES FINANCEIRAS - VF, VP, NPER, TAXA, PGATO | C27: Ir | D27: Ir
B28: TEXTO PARA COLUNA | C28: Ir
B29: MASCARA NO EXCEL | C29: Ir | D29: Ir
B30: MASCARA NO EXCEL_EXE_2 | D30: Ir
B31: GRÁFICOS | C31: Ir | D31: Ir
B32: GRAFICOS -MODELO 1 | C32: Ir | D32: Ir
B33: GRAFICOS -MODELO 2 | C33: Ir | D33: Ir
B34: GRAFICOS -MODELO 3 | C34: Ir
B35: HIPERLINK | C35: Ir | D35: Ir
B36: PROTEÇÃO DE PLANILHAS | C36: Ir
B37: PROTEÇÃO DE PLANILHAS_EXE_A | D37: Ir
B38: PROTEÇÃO DE PLANILHAS_EXE_B | D38: Ir
B39: Avançado
B40: FORMULÁRIOS | C40: Ir
B41: FORMULÁRIOS - 1)- CONTROLE GIRATÓRIO_EXE | C41: Ir
B42: FORMULÁRIOS - 2)- BARRA DE ROLAGEM_EXE | C42: Ir
B43: FORMULÁRIOS - 3)- BOTÃO DE OPÇÃO_EXE | C43: Ir
B44: FORMULÁRIOS - 4)- CAIXA DE COMBINAÇÃO_EXE | C44: Ir
B45: FORMULÁRIOS 1 | C45: Ir | D45: Ir
B46: FORMULÁRIOS 2 | C46: Ir | D46: Ir
B47: MACRO 1 | C47: Ir | D47: Ir
B48: MACRO 2 | C48: Ir | D48: Ir
B49: TECLAS DE ATALHOS | C49: Ir

Sheet O AMBIENTE EXCEL
B2: O AMBIENTE DE TRABALHO DO EXCEL 2007

Sheet Referência relat-abs
B1: REFERÊNCIA RELATIVA E ABSOLUTA (F4)
B3: Cesta básica
B4: Reajuste | C4: 0.04
B5: Produtos | C5: Quantidade | D5: Preço Unitário | E5: Total | F5: Reajuste
B6: Arroz | C6: 1 | D6: 3.57 | E6: 3.57 | F6: =E6*C$4 -> 0.1428
B7: Feijão | C7: 2 | D7: 2.14 | E7: 4.28 | F7: =E7*C$4 -> 0.1712
B8: Café | C8: 3 | D8: 0.89 | E8: 2.67 | F8: 0.1068
B9: Açucar | C9: 5 | D9: 0.53 | E9: 2.65 | F9: 0.106
B10: Óleo | C10: 3 | D10: 0.69 | E10: 2.07 | F10: 0.0828
B11: Sal | C11: 1 | D11: 0.28 | E11: 0.28 | F11: 0.0112
B12: Macarrão | C12: 2 | D12: 0.65 | E12: 1.3 | F12: 0.052
B13: Molho de tomate | C13: 3 | D13: 0.72 | E13: 2.16 | F13: 0.0864
B18: % Comissão | C18: 0.02
C20: JAN | D20: FEV | E20: MAR | F20: ABR | G20: JUN | H20: JUL
B21: Total | C21: 500 | D21: 5600 | E21: 4000 | F21: 3000 | G21: 4500 | H21: 5100 | I21: Contabil
B22: Comissão | C22: =$C$18*C21 -> 10 | D22: 112 | E22: 80 | F22: 60 | G22: 90 | H22: 102 | I22: Moeda
C23: .=$C18$*C21 | D23: .=$C18$*D21 | E23: .=$C18$*E21 | F23: .=$C18$*F21 | G23: .=$C18$*G21 | H23: .=$C18$*H21
L27: 1 | M27: 2 | N27: 3 | O27: 4 | P27: 5 | Q27: 6 | R27: 7 | S27: 8 | T27: 9 | U27: 10
L28: 11 | M28: 12 | N28: 13 | O28: 14 | P28: 15 | Q28: 16 | R28: 17 | S28: 18 | T28: 19 | U28: 20
L29: 21 | M29: 22 | N29: 23 | O29: 24 | P29: 25 | Q29: 26 | R29: 27 | S29: 28 | T29: 29 | U29: 30
L30: 31 | M30: 32 | N30: 33 | O30: 34 | P30: 35 | Q30: 36 | R30: 37 | S30: 38 | T30: 39 | U30: 40
L31: 41 | M31: 42 | N31: 43 | O31: 44 | P31: 45 | Q31: 46 | R31: 47 | S31: 48 | T31: 49 | U31: 50
L32: 51 | M32: 52 | N32: 53 | O32: 54 | P32: 55 | Q32: 56 | R32: 57 | S32: 58 | T32: 59 | U32: 60
L33: 61 | M33: 62 | N33: 63 | O33: 64 | P33: 65 | Q33: 66 | R33: 67 | S33: 68 | T33: 69 | U33: 70
L34: 71 | M34: 72 | N34: 73 | O34: 74 | P34: 75 | Q34: 76 | R34: 77 | S34: 78 | T34: 79 | U34: 80
L35: 81 | M35: 82 | N35: 83 | O35: 84 | P35: 85 | Q35: 86 | R35: 87 | S35: 88 | T35: 89 | U35: 90
L36: 91 | M36: 92 | N36: 93 | O36: 94 | P36: 95 | Q36: 96 | R36: 97 | S36: 98 | T36: 99 | U36: 100
L37: 101 | M37: 102 | N37: 103 | O37: 104 | P37: 105 | Q37: 106 | R37: 107 | S37: 108 | T37: 109 | U37: 110

Sheet Referência relat-abs_exe
C1: REFERÊNCIA RELATICA E ABSOLUTA - Exercícios
C3: Cesta básica
C4: Reajuste | D4: 0.04
C5: Produtos | D5: Quantidade | E5: Preço Unitário | F5: Total | G5: Reajuste | M5: Reajuste | N5: 0.014
C6: Arroz | D6: 1 | E6: 3.57 | M6: Funcionário | N6: Salário | O6: Reajuste
C7: Feijão | D7: 2 | E7: 2.14 | M7: Alex (Chelsea) | N7: 1982
C8: Café | D8: 3 | E8: 0.89 | M8: Alexandre Pato (Milan) | N8: 1200
C9: Açucar | D9: 5 | E9: 0.53 | M9: Anderson (Manchester United) | N9: 3000
C10: Óleo | D10: 3 | E10: 0.69 | M10: André Santos (Corinthians) | N10: 2700
C11: Sal | D11: 1 | E11: 0.28 | M11: Daniel Alves (Barcelona) | N11: 1908
C12: Macarrão | D12: 2 | E12: 0.65 | M12: Elano (Manchester City) | N12: 2897
C13: Molho de tomate | D13: 3 | E13: 0.72 | M13: Felipe Melo (Fiorentina) | N13: 3990
M14: Gilberto Silva (Panathinaikos) | N14: 4590
M15: Gomes (Tottenham) | N15: 3457
M16: Josué (Wolfsburg) | N16: 2098
M17: Juan (Roma) | N17: 1230
C18: % Comissão | D18: 0.02 | M18: Júlio Baptista (Roma) | N18: 1509
M19: Julio César (Internazionale) | N19: 3490
D20: JAN | E20: FEV | F20: MAR | G20: ABR | H20: JUN | I20: JUL | M20: Kaká (Milan) | N20: 4657
C21: Total | D21: 500 | E21: 5600 | F21: 4000 | G21: 3000 | H21: 4500 | I21: 5100 | M21: Kleber (Internacional) | N21: 2093
C22: Comissão | M22: Lúcio (Bayern de Munique) | N22: 4320
M23: Luís Fabiano (Sevilla) | N23: 3984
M24: Luisão (Benfica) | N24: 2098
M25: Maicon (Internazionale) | N25: 3928
M26: Nilmar (Internacional) | N26: 4309
M27: Ramires (Cruzeiro) | N27: 1092
M28: Robinho (Manchester City) | N28: 2992
M29: Victor (Grêmio) | N29: 3872

Sheet Soma-Méd-Mín-Max
B1: FUNÇÃO SOMA - MÉDIA - MÍNIMO - MÁXIMO
B3: Cesta básica
B4: Produtos | C4: Quantidade | D4: Preço Unitário | E4: Valor Total
B5: Arroz | C5: 1 | D5: ='Referência relat-abs'!D6 -> 3.57 | E5: =D5*C5 -> 3.57
B6: Feijão | C6: 2 | D6: ='Referência relat-abs'!D7 -> 2.14 | E6: =D6*C6 -> 4.28
B7: Café | C7: 3 | D7: ='Referência relat-abs'!D8 -> 0.89 | E7: 2.67
B8: Açucar | C8: 5 | D8: ='Referência relat-abs'!D9 -> 0.53 | E8: 2.65
B9: Óleo | C9: 3 | D9: ='Referência relat-abs'!D10 -> 0.69 | E9: 2.07
B10: Sal | C10: 1 | D10: ='Referência relat-abs'!D11 -> 0.28 | E10: 0.28
B11: Macarrão | C11: 2 | D11: ='Referência relat-abs'!D12 -> 0.65 | E11: 1.3
B12: Molho de tomate | C12: 3 | D12: ='Referência relat-abs'!D13 -> 0.72 | E12: 2.16
B14: Média da Cesta | C14: =AVERAGE(E5:E12) -> 2.3725 | D14: Média
B15: Produto mais caro | C15: =MAX(E5:E12) -> 4.28 | D15: Máximo
B16: Produto mais barato | C16: =MIN(E5:E12) -> 0.28 | D16: Mínino
B17: Total da Cesta | C17: =SUM(E5:E12) -> 18.98 | D17: Soma

Sheet Soma-Méd-Mín-Max_EXE
C1: FUNÇÃO SOMA - MÉDIA - MÍNIMO - MÁXIMO Exercício
C3: RELATÓRIO DE VENDAS | L3: Exercício 1
C4: NOME | D4: VALOR
C5: Edson | D5: 3000
C6: Sergio | D6: 2310 | F6: Média de Vendas | H6: Média
C7: Eliziane | D7: 2000 | F7: A maior venda | H7: Máximo
C8: Fábio | D8: 2000 | F8: A menor Venda | H8: Mínino
C9: Elizangela | D9: 5300 | F9: Total de vendas | H9: Soma
C10: Bruno | D10: 5000
C11: Adriana | D11: 3400
C15: CESTA BÁSICA | H15: Média | J15: Média | L15: Exercício 2
C16: Produtos | D16: Quantidade | E16: Valor | F16: Valor Total | H16: Maior | J16: Máximo
C17: Arroz | D17: 33 | E17: 2.44 | H17: Menor | J17: Mínino
C18: Feijão | D18: 2 | E18: 3.56 | H18: Total | J18: Soma
C19: Café | D19: 8 | E19: 3
C20: Açucar | D20: 3 | E20: 3.9 | H20: Média | J20: Média
C21: Óleo | D21: 6 | E21: 3.4 | H21: Maior | J21: Máximo
C22: Sal | D22: 5 | E22: 3.56 | H22: Menor | J22: Mínino
C23: Macarrão | D23: 16 | E23: 4.55 | H23: Total | J23: Soma
C24: Molho de tomate | D24: 7 | E24: 0.89
H25: Média | J25: Média
H26: Maior | J26: Máximo
H27: Menor | J27: Mínino
H28: Total | J28: Soma

Sheet Função SE
B1: FUNÇÃO SE
D2: Boletim Escolar
B4: Nomes | C4: 1º Bim | D4: 2º Bim | E4: 3º Bim | F4: 4º Bim | G4: Média | H4: Situação
B5: Fábio | C5: 7 | D5: 3 | E5: 7 | F5: 7 | G5: =AVERAGE(C5:F5) -> 6 | H5: =IF(G5>=7,"aprovado","reprovado") -> reprovado
B6: Cleiton | C6: 8 | D6: 10 | E6: 3 | F6: 9 | G6: =AVERAGE(C6:F6) -> 7.5 | H6: =IF(G6>=7,"aprovado","reprovado") -> aprovado
B7: Henrique | C7: 2 | D7: 3 | E7: 1 | F7: 3 | G7: =AVERAGE(C7:F7) -> 2.25 | H7: =IF(G7>=7,"aprovado","reprovado") -> reprovado
B8: Fabíola | C8: 9 | D8: 3 | E8: 0 | F8: 5 | G8: =AVERAGE(C8:F8) -> 4.25 | H8: =IF(G8>=7,"aprovado","reprovado") -> reprovado
B9: Fernando | C9: 9 | D9: 9 | E9: 10 | F9: 9 | G9: =AVERAGE(C9:F9) -> 9.25 | H9: =IF(G9>=7,"aprovado","reprovado") -> aprovado
B13: FUNÇÃO SE e E
D14: Boletim Escolar
A16: * | B16: Nomes | C16: 1º Bim | D16: 2º Bim | E16: 3º Bim | F16: 4º Bim | G16: Média | H16: Frequência | I16: Situação
B17: Fábio | C17: 7 | D17: 7 | E17: 7 | F17: 7 | G17: 8 | H17: 70 | I17: =IF(AND(G17>=7,H17>=70),"aprovado","reprovado") -> aprovado
B18: Cleiton | C18: 8 | D18: 10 | E18: 3 | F18: 9 | G18: =AVERAGE(C18:F18) -> 7.5 | H18: 40 | I18: =IF(AND(G18>=7,H18>=70),"aprovado","reprovado") -> reprovado
B19: Henrique | C19: 9 | D19: 2 | E19: 8 | F19: 9 | G19: =AVERAGE(C19:F19) -> 7 | H19: 80 | I19: =IF(AND(G19>=7,H19>=70),"aprovado","reprovado") -> aprovado
B20: Fabíola | C20: 8 | D20: 3 | E20: 5 | F20: 5 | G20: =AVERAGE(C20:F20) -> 5.25 | H20: 90 | I20: =IF(AND(G20>=7,H20>=70),"aprovado","reprovado") -> reprovado
B21: Fernando | C21: 9 | D21: 9 | E21: 10 | F21: 9 | G21: =AVERAGE(C21:F21) -> 9.25 | H21: 60 | I21: =IF(AND(G21>=7,H21>=70),"aprovado","reprovado") -> reprovado

Sheet Função SE_EXE
C1: FUNÇÃO SE Exercício
C4: Vendedor | D4: Vendas | E4: Situação | H4: Vendedor | I4: Entregas | J4: Situação
C5: Pedro | D5: 17000 | H5: Carlos | I5: 22
C6: Jonas | D6: 14000 | H6: Evandro | I6: 30
C7: Carla | D7: 19000 | H7: Ednéia | I7: 18
C14: FUNÇÃO SE e E Exercício
C17: Vendedor | D17: Vendas | E17: Visitas | F17: Situação
C18: Pedro | D18: 15000 | E18: 30
C19: Jonas | D19: 14000 | E19: 32
C20: Carla | D20: 19000 | E20: 52
C21: Thiago | D21: 12000 | E21: 30
C22: Fernando | D22: 10000 | E22: 80
C23: Fábio | D23: 20000 | E23: 30
C24: Gustavo | D24: 22000 | E24: 50

Sheet Função ORDEM
B1: FUNÇÃO ORDEM
B3: Classificação das Vendas
B4: Vendedor | C4: Visitas | D4: Classificação
B5: Amanda | C5: 45 | D5: =RANK(C5,$C$5:$C$13) -> 2
B6: André | C6: 50 | D6: =RANK(C6,$C$5:$C$13) -> 1
B7: Elizete | C7: 5 | D7: 7
B8: Fábio | C8: 9 | D8: 5
B9: Gustavo | C9: 23 | D9: 4
B10: Helen | C10: 34 | D10: 3
B11: Isabela | C11: 4 | D11: 8
B12: Marina | C12: 6 | D12: 6
B13: Pedro | C13: 2 | D13: 9

Sheet Função ORDEM_exe
C1: FUNÇÃO ORDEM Exercício
C3: Classificação das Vendas
C4: Aluno | D4: Visita | E4: Classificação | I4: JOGADOR | J4: GOLS | K4: CLASSIF.
C5: Elizete | D5: 7 | I5: Alex (Chelsea) | J5: 30
C6: Amanda | D6: 6 | I6: Alexandre Pato (Milan) | J6: 40
C7: Pedro | D7: 10 | I7: Anderson (Manchester United) | J7: 20
C8: Marina | D8: 8 | I8: André Santos (Corinthians) | J8: 30
C9: Isabela | D9: 7 | I9: Daniel Alves (Barcelona) | J9: 40
C10: André | D10: 9 | I10: Elano (Manchester City) | J10: 50
I11: Felipe Melo (Fiorentina) | J11: 38
I12: Gilberto Silva (Panathinaikos) | J12: 45
I13: Gomes (Tottenham) | J13: 60
I14: Josué (Wolfsburg) | J14: 29
I15: Juan (Roma) | J15: 49
I16: Júlio Baptista (Roma) | J16: 56
I17: Julio César (Internazionale) | J17: 30
I18: Kaká (Milan) | J18: 65
I19: Kleber (Internacional) | J19: 39
I20: Lúcio (Bayern de Munique) | J20: 42
I21: Luís Fabiano (Sevilla) | J21: 40
I22: Luisão (Benfica) | J22: 30
I23: Maicon (Internazionale) | J23: 23
I24: Nilmar (Internacional) | J24: 49
I25: Ramires (Cruzeiro) | J25: 50
I26: Robinho (Manchester City) | J26: 20
I27: Victor (Grêmio) | J27: 48

Sheet FUNÇÃO SomaSE
B1: FUNÇÃO SOMASE
B3: Relatório de venda por região
B5: Mês | C5: Região | D5: Vendedor | E5: Quantidade
B6: Jan | C6: Norte | D6: Paulo | E6: 5000
B7: Jan | C7: Sudeste | D7: Paulo | E7: 4572
B8: Jan | C8: Sudeste | D8: Wilian | E8: 8925
B9: Fev | C9: Norte | D9: Sérgio | E9: 7210 | G9: Resumo Por Região
B10: Fev | C10: Nordeste | D10: Jaime | E10: 6389 | G10: Norte | H10: =SUMIF(C6:C14,G10,$E$6:$E$14) -> 18671
B11: Fev | C11: Sudeste | D11: Sérgio | E11: 5517 | G11: Nordeste | H11: =SUMIF(C6:C14,G11,E6:E14) -> 14224
B12: Mar | C12: Norte | D12: Jaime | E12: 6461 | G12: Sudeste | H12: =SUMIF(C6:C14,G12,E6:E14) -> 28315
B13: Mar | C13: Nordeste | D13: Paulo | E13: 7835 | G13: total | H13: =SUM(H10:H12) -> 61210
B14: Mar | C14: Sudeste | D14: Jaime | E14: 9301
B15: Total em Kg | E15: 61210

Sheet FUNÇÃO SomaSE_EXE
B1: FUNÇÃO SOMASE Exercício
B3: Relatório de vendas do mês
B5: Vendedor | C5: Produto | D5: Quantidade
B6: Paulo | C6: Calça | D6: 30
B7: Paulo | C7: Camisa | D7: 20
B8: Wilian | C8: Chinelo | D8: 30
B9: Sérgio | C9: Chinelo | D9: 40 | G9: Resumo Por Produto
B10: Jaime | C10: Camisa | D10: 20 | G10: Calça
B11: Sérgio | C11: Camisa | D11: 30 | G11: Camisa
B12: Jaime | C12: Camisa | D12: 40 | G12: Chinelo
B13: Paulo | C13: Calça | D13: 5 | H13: =SUM(H10:H12) -> 0
B14: Jaime | C14: Camisa | D14: 30
B15: Total vendido | D15: =SUM(D6:D14) -> 245 | G15: Resumo Por Vendedor
G16: Paulo
G17: Wilian
G18: Sérgio
G19: Jaime
H20: =SUM(H16:H19) -> 0

Sheet FORMATAÇÃO CONDICIONAL
B1: FORMATAÇÃO CONDICIONAL na célula
B3: Relação de Comissão
B4: Nome | C4: Valor
B5: Fábio | C5: 567
B6: Marcia | C6: 1000
B7: Fabiana | C7: 400
B8: Edson | C8: 900
B9: Jefferson | C9: 500
B10: Sergio | C10: 345

Sheet FORMATAÇÃO CONDICIONAL_EXE
C1: FORMATAÇÃO CONDICIONAL na célula Exercício
C3: Relação de Comissão
C4: Nome | D4: Valor
C5: Fábio | D5: 567
C6: Marcia | D6: 560
C7: Fabiana | D7: 400
C8: Edson | D8: 900
C9: Jefferson | D9: 980
C10: Sergio | D10: 345
C15: Vendedor | D15: Visitas
C16: Pedro | D16: 3
C17: Jonas | D17: 32
C18: Carla | D18: 29
C19: Thiago | D19: 30
C20: Fernando | D20: 22
C21: Fábio | D21: 27
C22: Gustavo | D22: 50
C28: Relação de Comissão
C29: Nome | D29: Valor
C30: Fábio | D30: 567
C31: Marcia | D31: 560
C32: Fabiana | D32: 400
C33: Edson | D33: 900
C34: Jefferson | D34: 980
C35: Sergio | D35: 345

Sheet FORMATAÇÃO CONDICIONAL na linha
B1: FORMATAÇÃO CONDICIONAL na linha
B4: Cesta básica
B5: Produtos | C5: Quantidade | D5: Embalagem | E5: Preço Unitário | F5: Valor Total | G5: Cotação
B6: Arroz | C6: 1 | D6: 5 Kg | E6: 3.57 | F6: =E6 -> 3.57 | G6: sim
B7: Feijão | C7: 2 | D7: 1 Kg | E7: 2.14 | F7: =E7 -> 2.14 | G7: Sim
B8: Café | C8: 3 | D8: 1/2 Kg | E8: 0.89 | F8: 0.89 | G8: No
B9: Açucar | C9: 5 | D9: 1 Kg | E9: 0.53 | F9: 0.53 | G9: No
B10: Óleo | C10: 3 | D10: 900 ml | E10: 0.69 | F10: 0.69 | G10: sim
B11: Sal | C11: 1 | D11: 1 Kg | E11: 0.28 | F11: 0.28 | G11: No
B12: Macarrão | C12: 2 | D12: 1/2 Kg | E12: 0.65 | F12: 0.65
B13: Molho de tomate | C13: 3 | D13: 350 g | E13: 0.72 | F13: 0.72 | G13: no
B17: Cesta básica
B18: Produtos | C18: Quantidade | D18: Embalagem | E18: Preço Unitário | F18: Valor Total | G18: Cotação
B19: Arroz | C19: 1 | D19: 5 Kg | E19: 3.57 | F19: =E19 -> 3.57 | G19: ok
B20: Feijão | C20: 2 | D20: 1 Kg | E20: 2.14 | F20: =E20 -> 2.14
B21: Café | C21: 3 | D21: 1/2 Kg | E21: 0.89 | F21: 0.89
B22: Açucar | C22: 5 | D22: 1 Kg | E22: 0.53 | F22: 0.53
B23: Óleo | C23: 3 | D23: 900 ml | E23: 0.69 | F23: 0.69 | G23: ok
B24: Sal | C24: 1 | D24: 1 Kg | E24: 0.28 | F24: 0.28
B25: Macarrão | C25: 2 | D25: 1/2 Kg | E25: 0.65 | F25: 0.65
B26: Molho de tomate | C26: 3 | D26: 350 g | E26: 0.72 | F26: 0.72 | G26: ok

Sheet FORMATAÇÃO CONDICIONAL na Li_ex
C1: FORMATAÇÃO CONDICIONAL na linha Exercício
C3: Cesta básica
C4: Produtos | D4: Quantidade | E4: Embalagem | F4: Preço Unitário | G4: Valor Total | H4: Cotação
C5: Arroz | D5: 1 | E5: 5 Kg | F5: 3.57 | G5: =F5 -> 3.57 | H5: ok
C6: Feijão | D6: 2 | E6: 1 Kg | F6: 2.14 | G6: 2.14
C7: Café | D7: 3 | E7: 1/2 Kg | F7: 0.89 | G7: 0.89
C8: Açucar | D8: 5 | E8: 1 Kg | F8: 0.53 | G8: 0.53 | H8: ok
C9: Óleo | D9: 3 | E9: 900 ml | F9: 0.69 | G9: 0.69
C10: Sal | D10: 1 | E10: 1 Kg | H10: ok
C11: Macarrão | D11: 2 | E11: 1/2 Kg | F11: 0.65 | G11: 0.65 | H11: ok
C12: Molho de tomate | D12: 3 | E12: 350 g | F12: 0.72 | G12: 0.72
H13: ]
C19: Pilotos | D19: Bahrein | E19: Austrália | F19: Malásia | G19: China | H19: Espanha | I19: Total
C20: Jenson Button | D20: 16 | E20: 22 | F20: 12 | G20: 23 | H20: 3 | I20: =SUM(D20:H20) -> 76
C21: Fernando Alonso | D21: 12 | E21: 2 | F21: 19 | G21: 22 | H21: 20 | I21: =SUM(D21:H21) -> 75
C22: Sebastian Vettel | D22: 39 | E22: 3 | F22: 13 | G22: 2 | H22: 8 | I22: =SUM(D22:H22) -> 65
C23: Mark Webber | D23: 14 | E23: 22 | F23: 20 | G23: 3 | H23: 3 | I23: =SUM(D23:H23) -> 62
C24: Nico Rosberg | D24: 18 | E24: 14 | F24: 4 | G24: 30 | H24: 5 | I24: =SUM(D24:H24) -> 71

Sheet TECLAS DE ATALHO
B1: Teclas de Atalho
B3: Teclas de Atalho | C3: Ação
B4: Alt or F10 | C4: Ativa Menu
B5: Alt+= | C5: AutoSoma
B6: Alt+F1 | C6: Inserir Gráfico
B7: Alt+F2 | C7: Salvar Como
B8: Alt+F4 | C8: Exit
B9: Alt+F8 | C9: Caixa de Dialogo de Macros
B10: Alt+F11 | C10: Editor Visual Basic
B11: Alt+Shift+F1 | C11: Nova Planilha
B12: Alt+Shift+F2 | C12: Salvar
B13: Ctrl+- | C13: Excluir
B14: Ctrl+: | C14: Inserir Hora Atual
B15: Ctrl++ | C15: Inserir
B16: Ctrl++ | C16: Inserir
B17: Ctrl+1 | C17: Formatar Células
B18: Ctrl+2 | C18: Negrito
B19: Ctrl+3 | C19: Itálico
B20: Ctrl+4 | C20: Sublinhado
B21: Ctrl+5 | C21: Tachado
B22: Ctrl+6 | C22: Exibir/ Ocultar Objetos
B23: Ctrl+7 | C23: Exibir/Ocultar Barra Ferramentas Padrão
B24: Ctrl+8 | C24: mostrar Simbolos Tópicos
B25: Ctrl+9 | C25: Ocultar Linhas
B26: Ctrl+A | C26: Abrir
B27: Ctrl+B | C27: Salvar
B28: Ctrl+C | C28: Copiar
B29: Ctrl+D | C29: Preencher abaixo
B30: Ctrl+F | C30: Copia Formula Abaixo $
B31: Ctrl+H | C31: Copia Celula Acima e Cola Valor
B32: Ctrl+I | C32: Itálico
B33: Ctrl+K | C33: Inserir Hyperlink
B34: Ctrl+L | C34: Localizar
B35: Ctrl+N | C35: Negrito
B36: Ctrl+O | C36: Nova Pasta de Trabalho
B37: Ctrl+O | C37: Nova Pasta de Trabalho
B38: Ctrl+P | C38: Imprimir
B39: Ctrl+R | C39: Preencher Direita
B40: Ctrl+S | C40: Sublinhar
B41: Ctrl+U | C41: Substituir
B42: Ctrl+V | C42: Colar
B43: Ctrl+X | C43: Recortar
B44: Ctrl+Y | C44: Ir Para
B45: Ctrl+Z | C45: Desfazer
B46: Ctrl+F3 | C46: Definir Nome
B47: Ctrl+F4 | C47: Fechar
B48: Ctrl+F5 | C48: Restaurar Janela ativa.
B49: Ctrl+F6 | C49: Próxima Pasta de Trabalho
B50: Ctrl+F7 | C50: Mover Janela
B51: Ctrl+F8 | C51: Redimensionar Janela
B52: Ctrl+F9 | C52: Minimizar Pasta de Trabalho
B53: Ctrl+F10 | C53: Maximizar e restaurar janela
B54: Ctrl+F11 | C54: Inserir Planilha 4.0 Macro
B55: Ctrl+F12 | C55: Arquivo Abrir
B56: Ctrl+Shift+! | C56: Formato 2 casas decimais
B57: Ctrl+Shift+# | C57: Formato Data
B58: Ctrl+Shift+$ | C58: Formato Moeda
B59: Ctrl+Shift+% | C59: Formato Percentual
B60: Ctrl+Shift+& | C60: Borda externa na area selecionada
B61: Ctrl+Shift+( | C61: Reexibir Linhas
B62: Ctrl+Shift+) | C62: Reexibir Colunas
B63: Ctrl+Shift+* | C63: Seleciona Região Atual
B64: Ctrl+Shift+@ | C64: Formato Hora
B65: Ctrl+Shift+^ | C65: Formato Exponencial
B66: Ctrl+Shift+_ | C66: Remove borda externa
B67: Ctrl+Shift+~ | C67: Formato Geral
B68: Ctrl+Shift+A | C68: Inserir Nomes em argumentos das formulas
B69: Ctrl+Shift+F3 | C69: Criar Nomes usando Linhas e Colunas.
B70: Ctrl+Shift+F6 | C70: Janela Anterior
B71: Ctrl+Shift+F12 | C71: Imprimir
B72: Ctrl+Tab | C72: Alterna entre Pastas de Trabalho abertas
B73: Enter | C73: Finalizar comando
B74: F1 | C74: Ajuda
B75: F2 | C75: Editar Célula
B76: F3 | C76: Colar Nome
B77: F4 | C77: Em Edição formulas alterna Ref. absoluta/relativa.
B78: F4 | C78: Repetir última ação
B79: F5 | C79: Ir Para
B80: F7 | C80: Verificar Ortografia
B81: F8 | C81: Modo Extend para selecionar células
B82: F9 | C82: Recalcular todas as plans
B83: F10 | C83: Ativar barra Menu
